bitfinex/quotes_SOLUSD_20230702
["timestamp","ask_amount","ask_price","bid_price","bid_amount"]
[1688258125259,22.617,18.703,18.69,80.895]
[1688258125581,22.615,18.704,18.695,22.626]
[1688258126763,77.617,18.703,18.695,22.626]
[1688258127578,22.617,18.703,18.695,22.626]
[1688258127869,106.122,18.724,18.696,20.0]
[1688258128058,396.8,18.729,18.704,187.066]
[1688258128059,93.3326,18.722,18.704,187.066]
[1688258128255,396.8,18.729,18.705,55.0]
[1688258128256,58.146,18.729,18.705,55.0]
[1688258128465,22.588,18.727,18.712,80.802]
[1688258128770,93.3326,18.729,18.712,80.802]
[1688258128968,22.588,18.727,18.712,80.802]
[1688258129174,22.588,18.727,18.712,22.605]
[1688258129554,80.76,18.722,18.71,22.607]
[1688258130475,22.593,18.722,18.71,22.607]
[1688258130780,22.593,18.722,18.711,20.0]
[1688258131071,22.593,18.722,18.714,22.603]
[1688258131956,22.597,18.719,18.714,22.603]
[1688258132672,22.595,18.721,18.714,22.603]
[1688258134363,55.0,18.72,18.714,22.603]
[1688258134560,22.597,18.719,18.714,22.603]
[1688258135171,58.156,18.726,18.714,22.603]
[1688258135379,22.595,18.721,18.714,22.603]
[1688258136171,22.595,18.721,18.688,3.0]
[1688258136378,55.0,18.72,18.706,58.216]
[1688258136569,22.601,18.716,18.706,80.828]
[1688258136880,22.601,18.716,18.706,22.612]
[1688258137184,22.604,18.714,18.706,22.612]
[1688258137476,58.167,18.722,18.706,22.612]
[1688258137781,55.0,18.721,18.706,22.612]
[1688258138270,22.597,18.72,18.711,22.606]
[1688258138977,22.6,18.717,18.711,22.606]
[1688258140268,58.219,18.725,18.711,22.606]
[1688258140467,22.592,18.724,18.712,20.0]
[1688258140780,22.592,18.724,18.715,22.601]
[1688258141860,22.592,18.724,18.697,26.28233875]
[1688258142061,22.597,18.72,18.708,22.609]
[1688258142479,55.0,18.719,18.708,22.609]
[1688258142677,22.601,18.716,18.708,22.609]
[1688258142883,55.0,18.715,18.708,22.609]
[1688258143188,22.604,18.713,18.703,22.616]
[1688258143371,55.0,18.712,18.703,22.616]
[1688258143683,22.609,18.71,18.703,22.616]
[1688258143875,22.611,18.708,18.703,22.616]
[1688258145272,22.611,18.708,18.693,58.254]
[1688258145577,22.611,18.708,18.699,22.62]
[1688258146291,22.609,18.71,18.699,22.62]
[1688258146491,77.609,18.709,18.699,22.62]
[1688258147064,113.191,18.715,18.699,22.62]
[1688258147266,93.2641,18.719,18.705,80.83]
[1688258147691,58.155,18.726,18.7,72.04]
[1688258147692,396.8,18.739,18.712,22.605]
[1688258147886,58.145,18.73,18.712,22.605]
[1688258148082,22.584,18.73,18.718,80.776]
[1688258148481,80.726,18.73,18.718,22.598]
[1688258148671,80.726,18.73,18.716,22.6]
[1688258149480,22.591,18.724,18.711,58.2]
[1688258149686,22.596,18.72,18.716,22.6]
[1688258149872,55.0,18.729,18.716,22.6]
[1688258150071,58.141,18.731,18.716,22.6]
[1688258150276,22.59,18.725,18.716,22.6]
[1688258151193,22.59,18.725,18.708,58.209]
[1688258151376,75.0,18.724,18.708,22.61]
[1688258151578,80.772,18.72,18.708,22.61]
[1688258151788,55.0,18.719,18.708,22.61]
[1688258152093,22.601,18.716,18.708,22.61]
[1688258152301,55.0,18.715,18.708,22.61]
[1688258152593,22.603,18.714,18.701,58.229]
[1688258152793,22.603,18.714,18.69,17.04]
[1688258152794,55.0,18.713,18.694,58.253]
[1688258153094,55.0,18.713,18.697,22.623]
[1688258153095,80.822,18.708,18.697,22.623]
[1688258153592,22.615,18.704,18.697,22.623]
[1688258154177,22.613,18.706,18.697,22.623]
[1688258155080,22.618,18.702,18.695,22.625]
[1688258155280,22.618,18.702,18.68,17.03]
[1688258155281,22.618,18.702,18.691,22.63]
[1688258155477,22.622,18.698,18.69,22.631]
[1688258155683,22.622,18.698,18.686,58.278]
[1688258155873,22.626,18.696,18.689,22.633]
[1688258156086,22.623,18.698,18.689,22.633]
[1688258156793,22.622,18.698,18.689,80.902]
[1688258157291,22.622,18.698,18.689,22.633]
[1688258158193,22.622,18.699,18.689,22.633]
[1688258158875,58.22,18.705,18.689,22.633]
[1688258159081,22.622,18.699,18.689,22.633]
[1688258159292,22.619,18.701,18.689,22.633]
[1688258159587,22.617,18.703,18.693,80.883]
[1688258160289,22.617,18.703,18.693,22.627]
[1688258160499,22.617,18.703,18.691,22.63]
[1688258160682,55.0,18.702,18.692,20.0]
[1688258160995,22.621,18.699,18.692,20.0]
[1688258161198,22.621,18.699,18.692,42.629]
[1688258161501,55.0,18.702,18.692,42.629]
[1688258161806,22.621,18.699,18.692,42.629]
[1688258162994,55.0,18.702,18.692,42.629]
[1688258163897,77.618,18.702,18.692,42.629]
[1688258164193,22.614,18.705,18.692,42.629]
[1688258164497,22.6,18.717,18.693,55.0]
[1688258164696,22.6,18.717,18.7,204.139]
[1688258164999,22.6,18.717,18.705,80.83]
[1688258165702,22.6,18.717,18.705,22.613]
[1688258165882,55.0,18.716,18.705,22.613]
[1688258166083,22.603,18.714,18.705,22.613]
[1688258166292,106.994797,18.721,18.705,22.613]
[1688258166495,396.8,18.727,18.706,55.0]
[1688258166496,454.951,18.727,18.706,55.0]
[1688258166686,7.80445936,18.726,18.711,186.999]
[1688258166995,113.3996,18.729,18.717,186.94]
[1688258167189,113.3996,18.729,18.717,22.599]
[1688258167403,121.20405936,18.729,18.717,22.599]
[1688258168001,7.80445936,18.728,18.717,22.599]
[1688258168300,22.591,18.724,18.717,22.599]
[1688258168501,55.0,18.723,18.717,22.599]
[1688258168704,22.593,18.722,18.717,22.599]
[1688258168895,22.593,18.722,18.71,17.04]
[1688258169096,22.593,18.722,18.711,20.0]
[1688258169792,22.593,18.722,18.717,22.599]
[1688258171301,22.593,18.722,18.709,58.206]
[1688258171506,77.595,18.721,18.709,80.815]
[1688258171704,218.413,18.73,18.709,80.815]
[1688258171705,153.426,18.73,18.709,80.815]
[1688258171905,95.282,18.73,18.71,47.87719922]
[1688258172094,117.866,18.73,18.716,80.785]
[1688258172296,7.80445936,18.729,18.716,80.785]
[1688258172490,22.589,18.726,18.716,80.785]
[1688258172806,80.743,18.726,18.714,22.603]
[1688258173005,55.0,18.725,18.714,22.603]
[1688258173205,22.594,18.722,18.714,22.603]
[1688258173511,22.597,18.719,18.714,22.603]
[1688258173704,55.0,18.718,18.714,22.603]
[1688258175311,22.594,18.722,18.714,22.603]
[1688258175498,22.592,18.723,18.714,22.603]
[1688258175697,22.596,18.72,18.714,22.603]
[1688258175901,77.598,18.719,18.714,22.603]
[1688258176089,22.598,18.719,18.714,22.603]
[1688258176694,22.602,18.715,18.708,22.609]
[1688258176894,22.602,18.715,18.7,58.234]
[1688258177191,77.604,18.714,18.704,22.615]
[1688258177611,20.0,18.713,18.704,22.615]
[1688258177818,22.607,18.711,18.704,22.615]
[1688258178011,55.0,18.71,18.704,22.615]
[1688258178198,22.61,18.709,18.704,22.615]
[1688258178393,20.0,18.713,18.704,22.615]
[1688258178613,262.56423893,18.742,18.7,58.234]
[1688258178614,22.609,18.71,18.705,22.613]
[1688258179909,22.609,18.71,18.697,58.244]
[1688258180104,55.0,18.709,18.699,22.621]
[1688258180407,22.613,18.706,18.699,22.621]
[1688258181310,113.195,18.713,18.699,22.621]
[1688258181513,55.0,18.712,18.699,22.621]
[1688258182215,98.2379,18.718,18.7,34.05]
[1688258182423,22.602,18.715,18.705,22.613]
[1688258184019,55.0,18.714,18.705,22.613]
[1688258184221,22.606,18.712,18.705,22.613]
[1688258185537,22.604,18.714,18.705,22.613]
[1688258186328,22.601,18.716,18.705,22.613]
[1688258187450,58.182,18.719,18.705,22.613]
[1688258187744,22.593,18.723,18.714,22.603]
[1688258187922,42.593,18.723,18.714,22.603]
[1688258189255,7.8060848,18.728,18.714,22.603]
[1688258189752,55.0,18.727,18.714,22.603]
[1688258190044,22.589,18.726,18.714,22.603]
[1688258190245,22.594,18.722,18.714,22.603]
[1688258190642,55.0,18.721,18.714,22.603]
[1688258190831,22.597,18.719,18.714,22.603]
[1688258192237,22.593,18.722,18.714,22.603]
[1688258192425,22.592,18.724,18.714,22.603]
[1688258193032,22.595,18.721,18.714,22.603]
[1688258194445,77.593,18.723,18.714,22.603]
[1688258194743,22.593,18.723,18.714,22.603]
[1688258194950,22.59,18.725,18.714,80.794]
[1688258195245,55.0,18.724,18.714,80.794]
[1688258195429,22.589,18.726,18.714,80.794]
[1688258195631,55.0,18.725,18.714,80.794]
[1688258195929,77.59,18.725,18.714,80.794]
[1688258197442,22.59,18.725,18.714,80.794]
[1688258198036,22.59,18.725,18.714,22.603]
[1688258198543,58.154,18.729,18.714,22.603]
[1688258198757,22.582,18.732,18.714,22.603]
[1688258199038,22.581,18.733,18.724,22.59]
[1688258199542,22.579,18.735,18.724,22.59]
[1688258199748,22.575,18.737,18.724,22.59]
[1688258199922,22.574,18.739,18.724,22.59]
[1688258200128,22.574,18.739,18.725,55.0]
[1688258200325,22.574,18.739,18.729,22.585]
[1688258200639,30.3800848,18.739,18.729,22.585]
[1688258200847,30.3800848,18.739,18.727,22.587]
[1688258200848,7.8060848,18.738,18.727,22.587]
[1688258201026,22.579,18.734,18.727,22.587]
[1688258201222,22.578,18.736,18.727,22.587]
[1688258201428,22.575,18.738,18.727,22.587]
[1688258203850,88.4900848,18.741,18.727,22.587]
[1688258203851,30.3810848,18.741,18.727,80.738]
[1688258204040,22.577,18.736,18.727,80.738]
[1688258204225,22.577,18.736,18.727,22.587]
[1688258205252,55.0,18.74,18.727,80.738]
[1688258205743,22.573,18.739,18.727,80.738]
[1688258206555,7.8060848,18.746,18.727,80.738]
[1688258206849,22.57,18.741,18.727,80.738]
[1688258207551,85.9030848,18.746,18.734,186.764]
[1688258207731,78.097,18.746,18.734,186.764]
[1688258207925,430.85,18.76,18.74,34.05]
[1688258207926,22.557,18.753,18.74,34.05]
[1688258208132,22.557,18.753,18.743,22.567]
[1688258208331,22.554,18.755,18.743,22.567]
[1688258208532,22.552,18.757,18.748,22.561]
[1688258208733,58.105,18.76,18.748,22.561]
[1688258208935,7.8060848,18.762,18.748,22.561]
[1688258208936,58.046,18.761,18.748,22.561]
[1688258209143,7.8060848,18.76,18.748,22.561]
[1688258209358,22.55,18.759,18.748,22.561]
[1688258209532,58.046,18.763,18.748,22.561]
[1688258209733,93.4005,18.768,18.75,33.95]
[1688258209936,105.832,18.775,18.755,186.558]
[1688258209937,7.8060848,18.767,18.755,186.558]
[1688258210346,22.536,18.77,18.755,186.558]
[1688258210535,22.536,18.77,18.756,55.0]
[1688258210840,7.8060848,18.769,18.75,34.05]
[1688258211049,22.543,18.764,18.755,22.553]
[1688258212142,55.0,18.763,18.755,22.553]
[1688258212448,22.547,18.761,18.755,22.553]
[1688258213154,22.554,18.755,18.747,22.562]
[1688258213332,80.618,18.755,18.743,22.567]
[1688258213655,58.055,18.758,18.743,22.567]
[1688258213838,22.555,18.754,18.743,22.567]
[1688258216235,55.0,18.757,18.743,22.567]
[1688258216236,22.56,18.75,18.743,22.567]
[1688258216450,186.613,18.75,18.737,22.575]
[1688258216647,22.565,18.746,18.737,22.575]
[1688258217458,22.565,18.746,18.73,75.071]
[1688258217637,22.565,18.746,18.731,20.0]
[1688258218342,22.565,18.746,18.735,22.577]
[1688258218548,91.5132,18.752,18.736,55.0]
[1688258218747,22.561,18.75,18.74,22.571]
[1688258219848,80.641,18.75,18.738,22.573]
[1688258220055,55.0,18.749,18.737,22.575]
[1688258220260,22.565,18.746,18.737,22.575]
[1688258220561,3.45,18.887,18.737,22.575]
[1688258220744,105.946,18.755,18.738,55.0]
[1688258221064,22.558,18.751,18.743,22.568]
[1688258221957,22.558,18.751,18.738,113.114]
[1688258222459,80.634,18.751,18.742,22.568]
[1688258222658,80.634,18.751,18.731,20.0]
[1688258223175,88.4400848,18.751,18.736,22.576]
[1688258223744,22.565,18.746,18.736,22.576]
[1688258223958,7.8060848,18.751,18.736,22.576]
[1688258224158,598.9,18.769,18.737,55.0]
[1688258224360,22.552,18.757,18.743,80.666]
[1688258224560,7.8060848,18.765,18.744,55.0]
[1688258224756,22.548,18.76,18.75,22.559]
[1688258225264,22.548,18.76,18.744,55.0]
[1688258225265,22.548,18.76,18.748,22.561]
[1688258225463,22.548,18.76,18.743,58.101]
[1688258225464,30.3540848,18.76,18.746,22.563]
[1688258225665,30.3540848,18.76,18.744,22.566]
[1688258225978,7.8060848,18.759,18.746,22.563]
[1688258226149,58.035,18.765,18.746,22.563]
[1688258226347,17.09,18.78,18.747,20.0]
[1688258226348,58.015,18.771,18.747,20.0]
[1688258226663,396.8,18.787,18.76,16.94]
[1688258226664,7.8060848,18.768,18.76,16.94]
[1688258226852,7.8060848,18.768,18.762,186.489]
[1688258227056,7.8060848,18.768,18.763,55.0]
[1688258227258,97.8003,18.779,18.764,22.542]
[1688258227453,57.996,18.778,18.764,22.542]
[1688258228163,22.528,18.777,18.764,22.542]
[1688258228351,22.526,18.778,18.77,22.535]
[1688258228553,22.526,18.778,18.76,16.94]
[1688258228749,22.526,18.778,18.76,22.547]
[1688258229152,22.526,18.778,18.761,55.0]
[1688258229462,22.526,18.778,18.766,22.54]
[1688258229876,22.526,18.778,18.763,22.543]
[1688258230051,22.526,18.778,18.75,16.93]
[1688258230251,22.526,18.778,18.758,22.549]
[1688258230452,20.0,18.777,18.758,22.549]
[1688258230657,186.399,18.772,18.758,22.549]
[1688258230963,22.534,18.772,18.758,22.549]
[1688258231264,16.84,18.77,18.741,106.02]
[1688258231459,80.591,18.762,18.75,22.559]
[1688258231762,22.546,18.762,18.75,22.559]
[1688258232447,96.6984,18.766,18.75,22.559]
[1688258232448,22.548,18.76,18.75,22.559]
[1688258232853,22.548,18.76,18.74,16.88]
[1688258232854,22.548,18.76,18.745,58.094]
[1688258233054,22.553,18.756,18.742,58.104]
[1688258233271,22.553,18.756,18.746,22.564]
[1688258233667,58.042,18.763,18.746,80.656]
[1688258233855,154.7294,18.766,18.747,20.0]
[1688258234265,22.545,18.762,18.752,80.627]
[1688258234455,22.545,18.762,18.752,22.556]
[1688258234768,22.545,18.762,18.75,22.559]
[1688258235363,22.545,18.762,18.754,22.554]
[1688258235760,22.545,18.762,18.74,16.94]
[1688258235761,22.545,18.762,18.746,58.092]
[1688258236060,22.545,18.762,18.74,16.94]
[1688258236061,22.545,18.762,18.749,22.56]
[1688258237265,22.551,18.758,18.749,22.56]
[1688258237865,22.545,18.763,18.754,22.554]
[1688258238570,22.545,18.763,18.752,22.556]
[1688258238870,202.5824,18.766,18.75,22.558]
[1688258238871,22.549,18.759,18.75,22.558]
[1688258239584,22.549,18.759,18.749,22.56]
[1688258240571,22.547,18.761,18.754,22.554]
[1688258240783,154.7294,18.766,18.754,22.554]
[1688258241073,20.0,18.765,18.754,22.554]
[1688258241278,22.546,18.762,18.754,22.554]
[1688258241854,22.546,18.762,18.751,22.557]
[1688258242061,22.546,18.762,18.752,20.0]
[1688258242269,22.546,18.762,18.752,42.557]
[1688258244673,22.546,18.762,18.746,58.036]
[1688258244674,22.546,18.762,18.751,22.558]
[1688258244888,22.546,18.762,18.752,20.0]
[1688258245175,22.546,18.762,18.755,22.553]
[1688258245378,154.7284,18.766,18.755,22.553]
[1688258245379,22.544,18.764,18.755,22.553]
[1688258245701,80.588,18.762,18.747,22.563]
[1688258245873,80.588,18.762,18.741,58.106]
[1688258246179,16.94,18.76,18.742,20.0]
[1688258246378,22.554,18.755,18.747,22.562]
[1688258250070,22.552,18.757,18.747,22.562]
[1688258252077,55.0,18.756,18.747,22.562]
[1688258252281,22.556,18.754,18.747,22.562]
[1688258252892,22.556,18.754,18.717,321.7]
[1688258252893,20.0,18.753,18.719,3.0]
[1688258253095,80.653,18.747,18.737,22.575]
[1688258253385,55.0,18.756,18.737,22.575]
[1688258253386,155.4926,18.752,18.737,80.695]
[1688258253592,55.0,18.751,18.737,80.695]
[1688258253773,58.06,18.757,18.737,80.695]
[1688258253981,161.057,18.756,18.737,80.695]
[1688258254290,22.559,18.751,18.737,80.695]
[1688258254467,22.559,18.751,18.738,55.0]
[1688258254667,22.559,18.751,18.741,22.569]
[1688258254888,22.554,18.755,18.745,80.659]
[1688258255085,22.548,18.76,18.745,80.659]
[1688258255291,22.548,18.76,18.746,55.0]
[1688258255465,22.548,18.76,18.75,22.559]
[1688258256572,97.4176,18.765,18.75,22.559]
[1688258256771,22.544,18.763,18.754,22.554]
[1688258256972,74.93,18.77,18.754,22.554]
[1688258256973,20.0,18.762,18.754,22.554]
[1688258257172,42.545,18.762,18.754,22.554]
[1688258257371,42.545,18.762,18.746,55.0]
[1688258257593,100.587,18.762,18.747,22.562]
[1688258258295,100.587,18.762,18.747,80.651]
[1688258258791,42.545,18.762,18.747,80.651]
[1688258259094,22.545,18.762,18.748,55.0]
[1688258259273,27.67308857,18.778,18.748,55.0]
[1688258259274,95.7411,18.774,18.752,80.63]
[1688258259479,22.537,18.77,18.753,55.0]
[1688258259679,22.537,18.77,18.758,80.604]
[1688258259884,22.537,18.77,18.758,22.55]
[1688258260382,22.537,18.77,18.753,55.0]
[1688258260984,55.0,18.769,18.753,55.0]
[1688258261186,22.542,18.765,18.757,22.55]
[1688258261779,22.542,18.765,18.753,22.556]
[1688258261780,80.575,18.765,18.753,22.556]
[1688258261981,55.0,18.764,18.75,22.558]
[1688258262283,22.547,18.761,18.751,42.558]
[1688258264288,22.547,18.761,18.749,58.081]
[1688258264289,22.547,18.761,18.749,22.56]
[1688258264493,55.0,18.76,18.749,22.56]
[1688258264689,22.551,18.757,18.749,22.56]
[1688258265790,163.918,18.766,18.755,22.553]
[1688258265999,22.546,18.762,18.755,22.553]
[1688258266182,22.546,18.762,18.75,22.559]
[1688258266183,80.588,18.762,18.75,22.559]
[1688258266388,22.55,18.758,18.75,22.559]
[1688258267197,22.55,18.758,18.748,22.561]
[1688258267399,22.55,18.758,18.744,58.096]
[1688258267901,22.55,18.758,18.739,58.051]
[1688258267902,22.55,18.758,18.745,55.0]
[1688258268105,22.544,18.764,18.75,22.559]
[1688258268311,22.544,18.764,18.751,55.0]
[1688258268596,22.544,18.764,18.754,22.554]
[1688258268804,22.544,18.764,18.757,22.55]
[1688258268985,22.544,18.764,18.754,22.554]
[1688258272995,58.01,18.773,18.759,22.548]
[1688258273203,58.0,18.776,18.76,55.0]
[1688258273404,22.533,18.772,18.764,22.542]
[1688258274110,22.533,18.772,18.758,58.052]
[1688258274313,22.533,18.772,18.762,22.545]
[1688258277208,22.533,18.772,18.75,16.88]
[1688258277388,22.54,18.767,18.756,22.551]
[1688258277591,22.54,18.767,18.751,78.074]
[1688258277801,22.54,18.767,18.757,22.55]
[1688258278207,22.54,18.767,18.751,20.0]
[1688258278388,22.54,18.767,18.743,26.81003885]
[1688258278389,22.54,18.767,18.752,42.556]
[1688258278589,80.588,18.762,18.752,20.0]
[1688258278803,22.545,18.762,18.752,22.557]
[1688258280291,22.545,18.762,18.755,22.553]
[1688258282911,22.544,18.764,18.755,22.553]
[1688258285009,20.0,18.771,18.756,55.0]
[1688258285195,98.9988,18.778,18.763,186.48]
[1688258285394,57.974,18.785,18.77,22.535]
[1688258285616,22.517,18.786,18.77,22.535]
[1688258285805,22.517,18.786,18.771,75.0]
[1688258286011,27.67308857,18.799,18.775,80.53]
[1688258286196,16.83,18.8,18.775,80.53]
[1688258286197,22.507,18.794,18.775,80.53]
[1688258286516,22.507,18.794,18.775,22.529]
[1688258287016,20.0,18.793,18.775,22.529]
[1688258287217,22.514,18.788,18.775,22.529]
[1688258287415,22.514,18.788,18.776,55.0]
[1688258287620,22.514,18.788,18.774,58.003]
[1688258287621,22.514,18.788,18.777,22.526]
[1688258287817,22.514,18.788,18.743,5.70803136]
[1688258287818,22.514,18.788,18.76,16.93]
[1688258287998,22.514,18.788,18.773,22.532]
[1688258288311,119.0979,18.788,18.773,22.532]
[1688258289402,22.514,18.788,18.774,55.0]
[1688258289598,22.514,18.788,18.778,22.526]
[1688258290106,22.514,18.788,18.779,55.0]
[1688258290314,22.514,18.788,18.781,22.521]
[1688258290509,150.9097,18.792,18.782,55.0]
[1688258290510,22.51,18.792,18.782,55.0]
[1688258290825,22.51,18.792,18.785,22.517]
[1688258291015,22.51,18.792,18.782,22.521]
[1688258291216,22.51,18.792,18.776,57.999]
[1688258291516,22.51,18.792,18.78,22.522]
[1688258291703,30.27071184,18.792,18.78,22.522]
[1688258293215,22.509,18.792,18.781,55.0]
[1688258293410,22.509,18.792,18.779,22.524]
[1688258293635,22.509,18.792,18.78,20.0]
[1688258294119,22.509,18.792,18.781,22.522]
[1688258294418,22.505,18.796,18.781,33.35919922]
[1688258294721,117.9262,18.798,18.782,10.83719922]
[1688258294900,22.5,18.8,18.787,80.478]
[1688258295096,22.5,18.8,18.791,22.51]
[1688258295512,22.498,18.802,18.791,22.51]
[1688258295697,22.498,18.802,18.77,65.9611]
[1688258295900,16.92,18.8,18.77,16.94]
[1688258296100,186.2,18.792,18.778,22.525]
[1688258296316,80.461,18.792,18.778,22.525]
[1688258296921,154.7156,18.791,18.776,22.527]
[1688258297103,22.516,18.787,18.776,22.527]
[1688258297718,80.455,18.793,18.776,22.527]
[1688258298822,55.0,18.792,18.776,22.527]
[1688258299024,22.515,18.788,18.776,22.527]
[1688258300924,22.511,18.791,18.776,22.527]
[1688258301222,22.511,18.791,18.777,55.0]
[1688258301440,22.511,18.791,18.774,163.834]
[1688258301441,80.464,18.791,18.771,58.014]
[1688258301725,105.726,18.794,18.77,22.534]
[1688258301726,80.498,18.783,18.77,22.534]
[1688258301909,80.498,18.783,18.763,58.038]
[1688258302112,22.528,18.777,18.768,22.537]
[1688258302830,22.528,18.777,18.762,105.901]
[1688258302831,55.0,18.776,18.761,22.546]
[1688258303125,22.534,18.772,18.761,22.546]
[1688258304034,22.539,18.768,18.759,22.548]
[1688258306129,22.539,18.768,18.751,58.075]
[1688258306629,80.587,18.763,18.751,22.558]
[1688258307027,22.545,18.763,18.751,22.558]
[1688258307733,22.542,18.765,18.751,22.558]
[1688258307932,22.54,18.767,18.751,22.558]
[1688258308929,22.54,18.767,18.752,55.0]
[1688258309228,22.54,18.767,18.756,22.552]
[1688258309429,22.54,18.767,18.757,55.0]
[1688258309632,22.54,18.767,18.76,22.547]
[1688258309930,105.839,18.774,18.766,22.54]
[1688258309931,22.532,18.774,18.766,22.54]
[1688258310628,57.992,18.779,18.766,22.54]
[1688258311031,22.53,18.775,18.766,22.54]
[1688258312228,91.3314,18.783,18.763,58.038]
[1688258312229,22.528,18.777,18.77,22.535]
[1688258314026,22.526,18.779,18.77,22.535]
[1688258314330,105.768,18.787,18.77,22.535]
[1688258314530,22.519,18.784,18.771,55.0]
[1688258314726,22.516,18.787,18.774,80.534]
[1688258315040,22.516,18.787,18.775,55.0]
[1688258315217,22.516,18.787,18.778,22.525]
[1688258316026,80.481,18.787,18.771,58.014]
[1688258316730,80.481,18.787,18.775,22.529]
[1688258319539,22.516,18.787,18.775,22.529]
[1688258319824,80.481,18.787,18.775,22.529]
[1688258320730,57.944,18.794,18.775,22.529]
[1688258320932,27.00958299,18.799,18.776,75.0]
[1688258320933,57.935,18.797,18.776,75.0]
[1688258321117,22.509,18.793,18.782,80.501]
[1688258321727,112.7941,18.795,18.782,80.501]
[1688258322526,22.506,18.795,18.782,80.501]
[1688258325023,22.506,18.795,18.782,22.521]
[1688258327344,90.2881,18.802,18.782,22.521]
[1688258327546,90.2881,18.802,18.783,55.0]
[1688258327722,22.502,18.799,18.788,22.513]
[1688258328929,90.2881,18.802,18.789,20.0]
[1688258329235,90.2881,18.802,18.792,22.508]
[1688258329236,22.5,18.8,18.792,22.508]
[1688258330025,22.498,18.802,18.792,22.508]
[1688258336028,22.498,18.802,18.77,228.5851]
[1688258336029,16.84,18.8,18.779,22.524]
[1688258336229,186.177,18.794,18.777,22.527]
[1688258336433,186.177,18.794,18.772,58.009]
[1688258336434,75.0,18.793,18.775,22.529]
[1688258336741,80.477,18.788,18.775,22.529]
[1688258340635,22.514,18.788,18.779,22.524]
[1688258341042,22.514,18.788,18.777,22.526]